bitfinex/quotes_BTCUSD_20230905
["timestamp","ask_amount","ask_price","bid_price","bid_amount"]
[1693945850139,0.02631156,25724.0,25723.0,5.05410597]
[1693945850365,0.02631156,25724.0,25723.0,5.05422597]
[1693945850540,0.02631156,25724.0,25723.0,5.05392597]
[1693945850734,0.02631156,25724.0,25723.0,5.05536597]
[1693945850938,0.02631156,25724.0,25723.0,5.05572597]
[1693945851206,0.02631156,25724.0,25723.0,4.86129597]
[1693945851526,0.02631156,25724.0,25723.0,4.86135597]
[1693945851823,0.02631156,25724.0,25723.0,4.86129597]
[1693945852026,0.02631156,25724.0,25723.0,4.86141597]
[1693945852239,0.02631156,25724.0,25723.0,4.86165597]
[1693945852431,0.02631156,25724.0,25723.0,4.86177597]
[1693945852679,0.02631156,25724.0,25723.0,4.86069597]
[1693945852827,0.02631156,25724.0,25723.0,4.86279597]
[1693945853035,0.02631156,25724.0,25723.0,4.99353597]
[1693945853238,0.02631156,25724.0,25723.0,4.99377597]
[1693945853435,0.02631156,25724.0,25723.0,4.99389597]
[1693945853647,0.02631156,25724.0,25723.0,4.86273597]
[1693945853807,0.02631156,25724.0,25723.0,4.86267597]
[1693945854023,0.02631156,25724.0,25723.0,4.86279597]
[1693945854236,0.02631156,25724.0,25723.0,4.99353597]
[1693945854494,0.02631156,25724.0,25723.0,4.99365597]
[1693945854697,0.02631156,25724.0,25723.0,4.99389597]
[1693945854933,0.02631156,25724.0,25723.0,4.99401597]
[1693945855045,0.02631156,25724.0,25723.0,4.99437597]
[1693945855253,0.02631156,25724.0,25723.0,4.99425597]
[1693945855515,0.02631156,25724.0,25723.0,4.99461597]
[1693945855715,0.02631156,25724.0,25723.0,4.99449597]
[1693945855918,0.02631156,25724.0,25723.0,4.99485597]
[1693945856143,0.02631156,25724.0,25723.0,4.99497597]
[1693945856316,0.02631156,25724.0,25723.0,4.99389597]
[1693945856530,0.02631156,25724.0,25723.0,4.99413597]
[1693945856731,0.02631156,25724.0,25723.0,4.86075597]
[1693945856881,0.02631156,25724.0,25723.0,4.86129597]
[1693945857081,0.02631156,25724.0,25723.0,4.86093597]
[1693945857291,0.02631156,25724.0,25723.0,4.86075597]
[1693945857651,0.02631156,25724.0,25723.0,4.86087597]
[1693945857910,0.02631156,25724.0,25723.0,4.86081597]
[1693945858297,0.02631156,25724.0,25723.0,4.86087597]
[1693945858532,0.02631156,25724.0,25723.0,4.86117597]
[1693945858727,0.02631156,25724.0,25723.0,4.86105597]
[1693945858952,0.02631156,25724.0,25723.0,4.86087597]
[1693945859148,0.02631156,25724.0,25723.0,4.86081597]
[1693945859303,0.02631156,25724.0,25723.0,4.86093597]
[1693945859725,0.02631156,25724.0,25723.0,4.86087597]
[1693945860132,0.02631156,25724.0,25723.0,4.95421464]
[1693945860341,0.02631156,25724.0,25723.0,4.95309576]
[1693945860536,0.02631156,25724.0,25723.0,4.66829258]
[1693945860732,0.02631156,25724.0,25723.0,4.66805258]
[1693945860935,0.02631156,25724.0,25723.0,4.66883258]
[1693945861141,0.02631156,25724.0,25723.0,4.66817258]
[1693945861298,0.02631156,25724.0,25723.0,4.66823258]
[1693945861491,0.02631156,25724.0,25723.0,4.66877258]
[1693945861701,0.02631156,25724.0,25723.0,4.66865258]
[1693945862136,0.02631156,25724.0,25723.0,4.52874634]
[1693945862535,0.02631156,25724.0,25723.0,4.52868634]
[1693945863179,0.02631156,25724.0,25723.0,4.52862634]
[1693945863502,0.02631156,25724.0,25723.0,4.52754634]
[1693945863687,0.02631156,25724.0,25723.0,4.52748634]
[1693945863817,0.02631156,25724.0,25723.0,4.52784634]
[1693945864025,0.02631156,25724.0,25723.0,4.52772634]
[1693945864468,0.02631156,25724.0,25723.0,4.52676634]
[1693945864671,0.02631156,25724.0,25723.0,4.52748634]
[1693945865107,0.02631156,25724.0,25723.0,2.77808134]
[1693945865328,0.02631156,25724.0,25723.0,2.75072134]
[1693945865778,0.02631156,25724.0,25723.0,2.75090134]
[1693945865983,0.02631156,25724.0,25723.0,2.75132134]
[1693945866191,0.02631156,25724.0,25723.0,2.75036134]
[1693945866421,0.02631156,25724.0,25723.0,2.75180134]
[1693945866617,0.02631156,25724.0,25723.0,2.75198134]
[1693945866923,0.02631156,25724.0,25723.0,2.75210134]
[1693945867099,0.02631156,25724.0,25723.0,2.75246134]
[1693945867316,0.02631156,25724.0,25723.0,2.75264134]
[1693945867512,0.02631156,25724.0,25723.0,2.75300134]
[1693945867718,0.02631156,25724.0,25723.0,2.75312134]
[1693945867916,0.02631156,25724.0,25723.0,2.75348134]
[1693945868121,0.02631156,25724.0,25723.0,2.75372134]
[1693945868357,0.02631156,25724.0,25723.0,2.75384134]
[1693945868557,0.02631156,25724.0,25723.0,2.75252134]
[1693945868772,0.02631156,25724.0,25723.0,2.75144134]
[1693945868939,0.02631156,25724.0,25723.0,2.74934134]
[1693945869143,0.02631156,25724.0,25723.0,2.75012134]
[1693945869403,0.02631156,25724.0,25723.0,2.75030134]
[1693945869630,0.02631156,25724.0,25723.0,2.75048134]
[1693945869842,0.02631156,25724.0,25723.0,2.75066134]
[1693945870047,0.02631156,25724.0,25723.0,2.75072134]
[1693945870243,0.02631156,25724.0,25723.0,2.75084134]
[1693945870506,0.02631156,25724.0,25723.0,2.75072134]
[1693945870712,0.02631156,25724.0,25723.0,2.75096134]
[1693945870888,0.02631156,25724.0,25723.0,2.75174134]
[1693945871095,0.02631156,25724.0,25723.0,2.75156134]
[1693945871414,0.02631156,25724.0,25723.0,2.75240134]
[1693945871613,0.02631156,25724.0,25723.0,2.75198134]
[1693945871820,0.02631156,25724.0,25723.0,2.75210134]
[1693945872113,0.02631156,25724.0,25723.0,2.75222134]
[1693945872298,0.02631156,25724.0,25723.0,2.65960267]
[1693945872492,0.02631156,25724.0,25723.0,2.66284267]
[1693945872814,0.02631156,25724.0,25723.0,2.66308267]
[1693945873021,0.02631156,25724.0,25723.0,3.24663767]
[1693945873243,0.02631156,25724.0,25723.0,3.24675767]
[1693945873401,0.02631156,25724.0,25723.0,3.24681767]
[1693945873575,0.02631156,25724.0,25723.0,3.24561767]
[1693945873778,0.02631156,25724.0,25723.0,3.24573767]
[1693945873987,0.02631156,25724.0,25723.0,3.24579767]
[1693945874181,0.02631156,25724.0,25723.0,3.24591767]
[1693945874409,0.02631156,25724.0,25723.0,3.24627767]
[1693945874612,0.02631156,25724.0,25723.0,3.24609767]
[1693945874838,0.02631156,25724.0,25723.0,3.24633767]
[1693945875046,0.02631156,25724.0,25723.0,3.24639767]
[1693945875246,0.02631156,25724.0,25723.0,3.24645767]
[1693945875452,0.02631156,25724.0,25723.0,3.24651767]
[1693945875686,0.02631156,25724.0,25723.0,3.24657767]
[1693945875887,0.02631156,25724.0,25723.0,3.24669767]
[1693945876061,0.02631156,25724.0,25723.0,3.24699767]
[1693945876280,0.02631156,25724.0,25723.0,3.24717767]
[1693945876484,0.02631156,25724.0,25723.0,3.24705767]
[1693945876920,0.02631156,25724.0,25723.0,3.24669767]
[1693945877099,0.02631156,25724.0,25723.0,3.24675767]
[1693945877352,0.02631156,25724.0,25723.0,3.24621767]
[1693945877565,0.02631156,25724.0,25723.0,2.66362267]
[1693945877773,0.02631156,25724.0,25723.0,3.24477767]
[1693945877982,0.02631156,25724.0,25723.0,3.24525767]
[1693945878185,0.02631156,25724.0,25723.0,3.24675767]
[1693945878391,0.02631156,25724.0,25723.0,3.24687767]
[1693945878593,0.02631156,25724.0,25723.0,3.24447767]
[1693945878794,0.02631156,25724.0,25723.0,3.24459767]
[1693945879204,0.02631156,25724.0,25723.0,3.24471767]
[1693945879413,0.02631156,25724.0,25723.0,3.24447767]
[1693945879612,0.02631156,25724.0,25723.0,3.24537767]
[1693945879813,0.02631156,25724.0,25723.0,3.24543767]
[1693945880015,0.02631156,25724.0,25723.0,3.24687767]
[1693945880232,0.02631156,25724.0,25723.0,3.24567767]
[1693945880435,0.02631156,25724.0,25723.0,3.24525767]
[1693945880638,0.02631156,25724.0,25723.0,3.24543767]
[1693945880837,0.02631156,25724.0,25723.0,3.24831767]
[1693945881118,0.02631156,25724.0,25723.0,3.24843767]
[1693945881322,0.02631156,25724.0,25723.0,3.24867767]
[1693945881468,0.02631156,25724.0,25723.0,3.24843767]
[1693945881674,0.02631156,25724.0,25723.0,3.24531767]
[1693945881875,0.02631156,25724.0,25723.0,3.24513767]
[1693945882071,0.02631156,25724.0,25723.0,3.24525767]
[1693945882471,0.02631156,25724.0,25723.0,3.24219767]
[1693945882674,0.02631156,25724.0,25723.0,3.24237767]
[1693945882873,0.02631156,25724.0,25723.0,3.24315767]
[1693945883104,0.02631156,25724.0,25723.0,3.24351767]
[1693945883282,0.02631156,25724.0,25723.0,3.24333767]
[1693945883466,0.02631156,25724.0,25723.0,3.24351767]
[1693945883881,0.02631156,25724.0,25723.0,3.24345767]
[1693945884084,0.02631156,25724.0,25723.0,3.24351767]
[1693945884565,0.02631156,25724.0,25723.0,3.24021767]
[1693945884768,0.02631156,25724.0,25723.0,3.24129767]
[1693945884965,0.02631156,25724.0,25723.0,3.24087767]
[1693945885176,0.02631156,25724.0,25723.0,3.24297767]
[1693945885588,0.02631156,25724.0,25723.0,3.24315767]
[1693945885735,0.02631156,25724.0,25723.0,3.24195767]
[1693945885946,0.02631156,25724.0,25723.0,3.24309767]
[1693945886168,0.02631156,25724.0,25723.0,3.24339767]
[1693945886367,0.02631156,25724.0,25723.0,3.24345767]
[1693945886575,0.02631156,25724.0,25723.0,3.24327767]
[1693945886748,0.02631156,25724.0,25723.0,3.24435767]
[1693945887327,0.02631156,25724.0,25723.0,3.24441767]
[1693945887762,0.02631156,25724.0,25723.0,3.24537767]
[1693945888216,0.02631156,25724.0,25723.0,3.24543767]
[1693945888419,0.02631156,25724.0,25723.0,3.24447767]
[1693945888868,0.02631156,25724.0,25723.0,3.24429767]
[1693945889070,0.02631156,25724.0,25723.0,3.24435767]
[1693945889270,0.02631156,25724.0,25723.0,3.24441767]
[1693945889508,0.02631156,25724.0,25723.0,3.24393767]
[1693945889701,0.02631156,25724.0,25723.0,3.24375767]
[1693945889901,0.02631156,25724.0,25723.0,3.24369767]
[1693945890114,0.02631156,25724.0,25723.0,3.24279767]
[1693945890316,0.02631156,25724.0,25723.0,3.24291767]
[1693945890522,0.02631156,25724.0,25723.0,3.24285767]
[1693945890757,0.02631156,25724.0,25723.0,3.24267767]
[1693945891041,0.02631156,25724.0,25723.0,3.24255767]
[1693945891174,0.02631156,25724.0,25723.0,3.24243767]
[1693945891542,0.02631156,25724.0,25723.0,3.24261767]
[1693945891742,0.02631156,25724.0,25723.0,3.24285767]
[1693945891967,0.02631156,25724.0,25723.0,3.24303767]
[1693945892185,0.02631156,25724.0,25723.0,3.24357767]
[1693945892375,0.02631156,25724.0,25723.0,3.24081767]
[1693945892542,0.02631156,25724.0,25723.0,3.23973767]
[1693945892876,0.02631156,25724.0,25723.0,3.23943767]
[1693945893076,0.02631156,25724.0,25723.0,3.23985767]
[1693945893280,0.02631156,25724.0,25723.0,3.24513767]
[1693945893481,0.02631156,25724.0,25723.0,3.24387767]
[1693945893883,0.02631156,25724.0,25723.0,3.24477767]
[1693945894083,0.02631156,25724.0,25723.0,3.24387767]
[1693945894287,0.02631156,25724.0,25723.0,3.24381767]
[1693945894711,0.02631156,25724.0,25723.0,3.24387767]
[1693945894889,0.02631156,25724.0,25723.0,3.24357767]
[1693945895024,0.02631156,25724.0,25723.0,3.24417767]
[1693945895231,0.02631156,25724.0,25723.0,3.24447767]
[1693945895685,0.02631156,25724.0,25723.0,3.24405767]
[1693945895888,0.02631156,25724.0,25723.0,3.24447767]
[1693945896096,0.02631156,25724.0,25723.0,3.24453767]
[1693945896473,0.02631156,25724.0,25723.0,3.24477767]
[1693945896770,0.02631156,25724.0,25723.0,3.24405767]
[1693945897005,0.02631156,25724.0,25723.0,3.24411767]
[1693945897344,0.02631156,25724.0,25723.0,3.24441767]
[1693945897644,0.02631156,25724.0,25723.0,3.24423767]
[1693945897844,0.02631156,25724.0,25723.0,3.24393767]
[1693945898022,0.02631156,25724.0,25723.0,3.24411767]
[1693945898232,0.02631156,25724.0,25723.0,3.24471767]
[1693945898562,0.02631156,25724.0,25723.0,3.24081767]
[1693945898858,0.02631156,25724.0,25723.0,3.24093767]
[1693945899189,0.02631156,25724.0,25723.0,3.24105767]
[1693945899397,0.02631156,25724.0,25723.0,3.24111767]
[1693945899626,0.02631156,25724.0,25723.0,3.24141767]
[1693945899837,0.02631156,25724.0,25723.0,3.24135767]
[1693945900261,0.02631156,25724.0,25723.0,3.23967767]
[1693945900458,0.02631156,25724.0,25723.0,3.23985767]
[1693945900658,0.02631156,25724.0,25723.0,3.24231767]
[1693945900905,0.02631156,25724.0,25723.0,3.82821267]
[1693945901081,0.02631156,25724.0,25723.0,3.82899267]
[1693945901284,0.02631156,25724.0,25723.0,3.82935267]
[1693945901485,0.02631156,25724.0,25723.0,3.83385267]
[1693945901686,0.02631156,25724.0,25723.0,3.83409267]
[1693945901887,0.02631156,25724.0,25723.0,3.83349267]
[1693945902309,0.02631156,25724.0,25723.0,3.83367267]
[1693945902531,0.02631156,25724.0,25723.0,3.84213267]
[1693945902757,0.02631156,25724.0,25723.0,3.84309267]
[1693945902973,0.02631156,25724.0,25723.0,3.84291267]
[1693945903141,0.02631156,25724.0,25723.0,3.84285267]
[1693945903295,0.02631156,25724.0,25723.0,3.84267267]
[1693945903493,0.02631156,25724.0,25723.0,3.84291267]
[1693945903693,0.02631156,25724.0,25723.0,3.84297267]
[1693945903998,0.02631156,25724.0,25723.0,3.84285267]
[1693945904203,0.02631156,25724.0,25723.0,3.84279267]
[1693945904426,0.02631156,25724.0,25723.0,3.84267267]
[1693945904634,0.02631156,25724.0,25723.0,3.84189267]
[1693945904979,0.02631156,25724.0,25723.0,3.84159267]
[1693945905155,0.02631156,25724.0,25723.0,3.83889267]
[1693945905359,0.02631156,25724.0,25723.0,3.83895267]
[1693945905682,0.02631156,25724.0,25723.0,3.83871267]
[1693945905819,0.02631156,25724.0,25723.0,3.84057267]
[1693945906025,0.02631156,25724.0,25723.0,3.84021267]
[1693945906428,0.02631156,25724.0,25723.0,3.83997267]
[1693945906639,0.02631156,25724.0,25723.0,3.83991267]
[1693945906844,0.02631156,25724.0,25723.0,3.83997267]
[1693945907143,0.02631156,25724.0,25723.0,3.83991267]
[1693945907357,0.02631156,25724.0,25723.0,3.83985267]
[1693945907579,0.02631156,25724.0,25723.0,3.83979267]
[1693945907780,0.02631156,25724.0,25723.0,3.83973267]
[1693945907983,0.02631156,25724.0,25723.0,3.83961267]
[1693945908547,0.02631156,25724.0,25723.0,3.83931267]
[1693945908847,0.02631156,25724.0,25723.0,3.83925267]
[1693945909206,0.02631156,25724.0,25723.0,3.83751267]
[1693945909405,0.02631156,25724.0,25723.0,3.83673267]
[1693945909805,0.02631156,25724.0,25723.0,3.83685267]
[1693945910040,0.02631156,25724.0,25723.0,3.83847267]
[1693945910206,0.02631156,25724.0,25723.0,3.93181134]
[1693945910435,0.02631156,25724.0,25723.0,3.93187134]
[1693945911031,0.02631156,25724.0,25723.0,3.93349134]
[1693945911229,0.02631156,25724.0,25723.0,3.93343134]
[1693945911443,0.02631156,25724.0,25723.0,3.93163134]
[1693945911840,0.02631156,25724.0,25723.0,3.93145134]
[1693945912044,0.02631156,25724.0,25723.0,3.93157134]
[1693945912520,0.02631156,25724.0,25723.0,3.93331134]
[1693945912721,0.02631156,25724.0,25723.0,3.93097134]
[1693945912881,0.02631156,25724.0,25723.0,3.93079134]
[1693945913077,0.02631156,25724.0,25723.0,3.93073134]
[1693945913287,0.02631156,25724.0,25723.0,3.93067134]
[1693945913688,0.02631156,25724.0,25723.0,3.93013134]
[1693945913887,0.02631156,25724.0,25723.0,3.92971134]
[1693945914084,0.02631156,25724.0,25723.0,3.92905134]
[1693945914362,0.02631156,25724.0,25723.0,3.92899134]
[1693945914563,0.02631156,25724.0,25723.0,3.92923134]
[1693945914857,0.02631156,25724.0,25723.0,3.92857134]
[1693945915069,0.04,25725.0,25723.0,3.92857134]
[1693945915235,0.04,25725.0,25724.0,1.12053222]
[1693945915462,0.04,25725.0,25724.0,2.49820522]
[1693945915685,0.04,25725.0,25724.0,2.49839003]
[1693945916026,0.04,25725.0,25724.0,2.49845003]
[1693945916225,0.04,25725.0,25724.0,2.49851003]
[1693945916549,0.04,25725.0,25724.0,2.52339003]
[1693945916928,0.04,25725.0,25724.0,2.54839003]
[1693945917209,0.04,25725.0,25724.0,2.54887003]
[1693945917348,0.04,25725.0,25724.0,2.54791003]
[1693945917549,0.04,25725.0,25724.0,2.54713003]
[1693945917893,0.04,25725.0,25724.0,2.54671003]
[1693945918210,0.04,25725.0,25724.0,2.54677003]
[1693945918323,0.0669317,25725.0,25724.0,2.54785003]
[1693945918530,0.0669317,25725.0,25724.0,2.54719003]
[1693945918729,0.0669317,25725.0,25724.0,2.54701003]
[1693945918954,0.0669317,25725.0,25724.0,2.54707003]
[1693945919170,0.0669317,25725.0,25724.0,2.54701003]
[1693945919372,0.0669317,25725.0,25724.0,2.54689003]
[1693945919821,0.0669317,25725.0,25724.0,2.54701003]
[1693945920024,0.0669317,25725.0,25724.0,2.54707003]
[1693945920174,0.0669317,25725.0,25724.0,2.54695003]
[1693945920398,0.0669317,25725.0,25724.0,2.54797003]
[1693945920783,0.0669317,25725.0,25724.0,2.54791003]
[1693945921207,0.0669317,25725.0,25724.0,2.55037003]
[1693945921569,0.0669317,25725.0,25724.0,2.54677003]
[1693945921776,0.0669317,25725.0,25724.0,2.54659003]
[1693945921942,0.0669317,25725.0,25724.0,2.54617003]
[1693945922135,0.0669317,25725.0,25724.0,2.54575003]
[1693945922321,0.0669317,25725.0,25724.0,2.54191003]
[1693945922528,0.0669317,25725.0,25724.0,2.54185003]
[1693945922735,0.0669317,25725.0,25724.0,2.53975003]
[1693945923131,0.0669317,25725.0,25724.0,2.53999003]
[1693945923874,0.0669317,25725.0,25724.0,2.53975003]
[1693945924104,0.0669317,25725.0,25724.0,2.53915003]
[1693945924282,0.0669317,25725.0,25724.0,2.53933003]
[1693945924425,0.0669317,25725.0,25724.0,2.54005003]
[1693945924641,0.0669317,25725.0,25724.0,2.53969003]
[1693945925046,0.0669317,25725.0,25724.0,2.53975003]
[1693945925247,0.0669317,25725.0,25724.0,2.53981003]
[1693945925729,0.0669317,25725.0,25724.0,2.53987003]
[1693945925965,0.0669317,25725.0,25724.0,2.53993003]
[1693945926169,0.0669317,25725.0,25724.0,2.53999003]
[1693945926323,0.0669317,25725.0,25724.0,2.54005003]
[1693945926504,0.0669317,25725.0,25724.0,2.54011003]
[1693945926698,0.0669317,25725.0,25724.0,2.54017003]
[1693945926920,0.0669317,25725.0,25724.0,2.53795003]
[1693945927343,0.0669317,25725.0,25724.0,2.53801003]
[1693945927490,0.0669317,25725.0,25724.0,2.53789003]
[1693945927691,0.0669317,25725.0,25724.0,2.53783003]
[1693945927908,0.0669317,25725.0,25724.0,2.53789003]
[1693945928106,0.0669317,25725.0,25724.0,2.53801003]
[1693945928340,0.0669317,25725.0,25724.0,2.53789003]
[1693945928568,0.0669317,25725.0,25724.0,2.53795003]
[1693945929032,0.0669317,25725.0,25724.0,2.53897003]
[1693945929209,0.0669317,25725.0,25724.0,2.53903003]
[1693945929417,0.0669317,25725.0,25724.0,2.53801003]
[1693945929623,0.0669317,25725.0,25724.0,2.53699003]
[1693945929891,0.0669317,25725.0,25724.0,2.53837003]
[1693945930026,0.0669317,25725.0,25724.0,2.53747003]
[1693945930232,0.0669317,25725.0,25724.0,2.53753003]
[1693945930439,0.0669317,25725.0,25724.0,2.53651003]
[1693945930649,0.0669317,25725.0,25724.0,2.53915003]
[1693945930851,0.0669317,25725.0,25724.0,2.53759003]
[1693945931212,0.0669317,25725.0,25724.0,2.53771003]
[1693945931415,0.0669317,25725.0,25724.0,2.53795003]
[1693945931628,0.0669317,25725.0,25724.0,2.53807003]
[1693945931831,0.0669317,25725.0,25724.0,2.53825003]
[1693945932067,0.0669317,25725.0,25724.0,2.53969003]
[1693945932181,0.0669317,25725.0,25724.0,2.53975003]
[1693945932400,0.0669317,25725.0,25724.0,2.54071003]
[1693945932793,0.0669317,25725.0,25724.0,2.53879003]
[1693945932984,0.0669317,25725.0,25724.0,2.53873003]
[1693945933195,0.0669317,25725.0,25724.0,2.53855003]
[1693945933343,0.0669317,25725.0,25724.0,2.53867003]
[1693945933789,0.0669317,25725.0,25724.0,2.54035003]
[1693945934270,0.0669317,25725.0,25724.0,2.54041003]
[1693945934478,1.92629423,25725.0,25724.0,1.87077703]
[1693945936596,1.92629423,25725.0,25724.0,0.75024481]
[1693945936724,1.94629423,25725.0,25724.0,0.75024481]
[1693945937132,3.1103925,25725.0,25724.0,0.75024481]
[1693945937335,3.22364812,25725.0,25724.0,0.75024481]
[1693945937756,3.36353155,25725.0,25724.0,0.75024481]
[1693945937955,3.22364812,25725.0,25724.0,0.75024481]
[1693945938224,3.22364812,25725.0,25724.0,0.05024481]
[1693945938424,3.22364812,25725.0,25724.0,0.02524481]
[1693945938699,3.28364812,25725.0,25724.0,0.02524481]
[1693945938874,3.28364812,25725.0,25720.0,0.06768]
[1693945938875,2.33256,25723.0,25720.0,0.06768]
[1693945939079,2.33256,25723.0,25722.0,0.7]
[1693945939080,2.71920527,25723.0,25722.0,0.7]
[1693945939258,2.88170527,25723.0,25722.0,0.7]
[1693945939681,2.88170527,25723.0,25722.0,0.70023449]
[1693945939941,2.7017923,25723.0,25722.0,0.70023449]
[1693945940325,2.7017923,25723.0,25722.0,0.72523449]
[1693945940762,2.7017923,25723.0,25722.0,0.75023449]
[1693945942823,2.7817923,25723.0,25722.0,0.75023449]
[1693945944640,2.7817923,25723.0,25722.0,0.05023449]
[1693945945498,2.7217923,25723.0,25722.0,0.05023449]
[1693945946408,2.7817923,25723.0,25722.0,0.05023449]
[1693945948351,2.8122648,25723.0,25722.0,0.05023449]
[1693945950744,2.6005325,25723.0,25722.0,0.05]
[1693945953015,2.6205325,25723.0,25722.0,0.05]
[1693945953398,3.04717777,25723.0,25722.0,0.05]
[1693945957590,3.04317777,25723.0,25722.0,0.05]
[1693945965774,3.2311024,25723.0,25722.0,0.05]
[1693945966336,3.52537361,25723.0,25722.0,0.05]
[1693945966718,3.33744898,25723.0,25722.0,0.05]
[1693945979775,3.4307046,25723.0,25722.0,0.05]
[1693945982531,3.57058803,25723.0,25722.0,0.05]
[1693945983969,3.47733241,25723.0,25722.0,0.05]
[1693945986762,3.66384365,25723.0,25722.0,0.05]
[1693945986986,3.52396022,25723.0,25722.0,0.05]
[1693945987819,3.70126342,25723.0,25722.0,0.05]
[1693945988968,3.93440247,25723.0,25722.0,0.05]
[1693945990852,3.74789123,25723.0,25722.0,0.05]
[1693945995162,3.7994308,25723.0,25722.0,0.05]
[1693945996624,3.79927145,25723.0,25722.0,0.05]
[1693945996821,3.56629175,25723.0,25722.0,0.05]
[1693945999055,3.66879175,25723.0,25722.0,0.05]
[1693945999258,3.56629175,25723.0,25722.0,0.05]
[1693946000089,3.56629175,25723.0,25722.0,0.025]
[1693946000282,3.56629175,25723.0,25722.0,0.032]
[1693946000928,3.66879175,25723.0,25722.0,0.032]
[1693946001361,3.66879175,25723.0,25722.0,0.007]
[1693946001971,3.66879175,25723.0,25722.0,0.014]
[1693946002387,3.66879175,25723.0,25716.0,0.1609]
[1693946002388,0.06,25717.0,25716.0,0.1609]
[1693946002589,3.27328,25717.0,25713.0,0.16456678]
[1693946002800,3.17078,25717.0,25714.0,0.7]
[1693946003006,0.1625,25715.0,25714.0,0.7]
[1693946003208,2.495768,25715.0,25714.0,0.7]
[1693946003828,2.495768,25715.0,25714.0,0.725]
[1693946004363,2.495768,25715.0,25714.0,0.7]
[1693946004579,2.496768,25715.0,25714.0,0.725]
[1693946005642,2.497768,25715.0,25714.0,0.75]
[1693946008440,2.52573718,25715.0,25714.0,0.75]
[1693946009945,1.74798118,25715.0,25714.0,0.75]
[1693946011277,2.09509049,25715.0,25714.0,0.75]
[1693946015552,1.31733449,25715.0,25714.0,0.75]
[1693946020296,0.53957849,25715.0,25714.0,0.75]
[1693946029127,0.19246918,25715.0,25714.0,0.75]
[1693946029332,0.08996918,25715.0,25714.0,2.038238]
[1693946029533,0.08996918,25715.0,25714.0,2.606277]
[1693946029738,0.08996918,25715.0,25714.0,2.604897]
[1693946029939,0.08996918,25715.0,25714.0,2.604537]
[1693946030143,0.08996918,25715.0,25714.0,2.604297]
[1693946030368,0.08996918,25715.0,25714.0,2.604117]
[1693946030582,0.08996918,25715.0,25714.0,2.604057]
[1693946030765,0.08996918,25715.0,25714.0,2.603877]
[1693946031061,0.08996918,25715.0,25714.0,2.603457]
[1693946031261,0.08996918,25715.0,25714.0,2.603037]
[1693946031488,0.08996918,25715.0,25714.0,2.602857]
[1693946031689,0.08996918,25715.0,25714.0,2.601177]
[1693946031912,0.08996918,25715.0,25714.0,2.600817]
[1693946032138,0.08996918,25715.0,25714.0,2.600637]
[1693946032468,0.08996918,25715.0,25714.0,2.600577]
[1693946032666,0.08996918,25715.0,25714.0,2.600217]
[1693946032867,0.08996918,25715.0,25714.0,2.600097]
[1693946033078,0.08996918,25715.0,25714.0,2.599917]
[1693946033368,0.08996918,25715.0,25714.0,2.599677]
[1693946033567,0.08996918,25715.0,25714.0,2.599557]
[1693946033777,0.08996918,25715.0,25714.0,2.599137]
[1693946033918,0.08996918,25715.0,25714.0,2.598357]
[1693946034116,0.08996918,25715.0,25714.0,2.597937]
[1693946034325,0.08996918,25715.0,25714.0,2.014538]
[1693946034608,0.08996918,25715.0,25714.0,2.014418]
[1693946034761,0.08996918,25715.0,25714.0,2.014298]
[1693946034926,0.08996918,25715.0,25714.0,2.014058]
[1693946035129,0.08996918,25715.0,25714.0,2.013938]
[1693946035328,0.08996918,25715.0,25714.0,2.013698]
[1693946035806,0.08996918,25715.0,25714.0,2.013098]
[1693946036009,0.08996918,25715.0,25714.0,2.012858]
[1693946036218,0.08996918,25715.0,25714.0,2.012738]
[1693946036449,0.08996918,25715.0,25714.0,2.012618]
[1693946036658,0.08996918,25715.0,25714.0,2.012258]
[1693946036837,0.08996918,25715.0,25714.0,2.012138]
[1693946037137,0.08996918,25715.0,25714.0,2.011178]
[1693946037334,0.08996918,25715.0,25714.0,2.011058]
[1693946037468,0.08996918,25715.0,25714.0,2.011778]
[1693946037673,0.08996918,25715.0,25714.0,2.011538]
[1693946037955,0.08996918,25715.0,25714.0,2.011898]
[1693946038138,0.08996918,25715.0,25714.0,2.011238]
[1693946038312,0.08996918,25715.0,25714.0,2.011058]
[1693946038514,0.08996918,25715.0,25714.0,2.011418]
[1693946038715,0.08996918,25715.0,25714.0,2.011298]
[1693946038878,0.08996918,25715.0,25714.0,2.011178]
[1693946039080,0.08996918,25715.0,25714.0,2.011058]
[1693946039329,0.08996918,25715.0,25714.0,2.008538]
[1693946039523,0.08996918,25715.0,25714.0,2.008778]
[1693946039702,0.08996918,25715.0,25714.0,2.008718]
[1693946039907,0.08996918,25715.0,25714.0,2.008658]
[1693946040102,0.08996918,25715.0,25714.0,2.008598]
[1693946040310,0.08996918,25715.0,25714.0,2.009498]
[1693946040512,0.08996918,25715.0,25714.0,2.010158]
[1693946040714,0.08996918,25715.0,25714.0,2.010098]
[1693946040936,0.08996918,25715.0,25714.0,2.009918]
[1693946041137,0.08996918,25715.0,25714.0,2.009798]
[1693946041333,0.08996918,25715.0,25714.0,2.009558]
[1693946041541,0.08996918,25715.0,25714.0,1.425139]
[1693946041742,0.08996918,25715.0,25714.0,1.425859]
[1693946041942,0.08996918,25715.0,25714.0,1.426219]
[1693946042138,0.08996918,25715.0,25714.0,1.426399]
[1693946042347,0.08996918,25715.0,25714.0,1.426279]
[1693946042526,0.08996918,25715.0,25714.0,1.424899]
[1693946042908,0.08996918,25715.0,25714.0,1.425379]
[1693946043032,0.08996918,25715.0,25714.0,1.425559]
[1693946043235,0.08996918,25715.0,25714.0,1.425019]
[1693946043435,0.08996918,25715.0,25714.0,1.424119]
[1693946043779,0.08996918,25715.0,25714.0,1.425199]
[1693946043980,0.08996918,25715.0,25714.0,1.425139]
[1693946044280,0.08996918,25715.0,25714.0,1.425199]
[1693946044502,0.08996918,25715.0,25714.0,1.423879]
[1693946044651,0.08996918,25715.0,25714.0,1.423459]
[1693946044864,0.08996918,25715.0,25714.0,1.424539]
[1693946045285,0.08996918,25715.0,25714.0,1.424659]
[1693946045493,0.08996918,25715.0,25714.0,1.425139]
[1693946045644,0.08996918,25715.0,25714.0,1.425379]
[1693946045849,0.08996918,25715.0,25714.0,1.425319]
[1693946046049,0.08996918,25715.0,25714.0,1.425259]
[1693946046249,0.08996918,25715.0,25714.0,1.425139]
[1693946046529,0.08996918,25715.0,25714.0,1.425199]
[1693946046711,0.08996918,25715.0,25714.0,1.425079]
[1693946047011,0.08996918,25715.0,25714.0,1.424839]
[1693946047215,0.08996918,25715.0,25714.0,1.424719]
[1693946047412,0.08996918,25715.0,25714.0,1.424539]
[1693946047550,0.08996918,25715.0,25714.0,1.424119]
[1693946047752,0.08996918,25715.0,25714.0,1.424419]
[1693946047950,0.08996918,25715.0,25714.0,1.424359]
[1693946048157,0.08996918,25715.0,25714.0,0.84102]
[1693946048356,0.08996918,25715.0,25714.0,0.84012]
[1693946048650,0.08996918,25715.0,25714.0,0.83988]